bitfinex-derivatives/quotes_SOLF0:USTF0_20260118
["timestamp","ask_amount","ask_price","bid_price","bid_amount"]
[1768758821058,15.89107649,142.22,142.16,20.13257912]
[1768758825865,1.77372814,142.21,142.16,20.13257912]
[1768758830272,14.11734835,142.22,142.16,20.13257912]
[1768758830565,1.77372814,142.21,142.16,20.13257912]
[1768758831366,14.11734835,142.22,142.16,20.13257912]
[1768758831557,1.77372814,142.21,142.16,20.13257912]
[1768758845173,1.77372814,142.21,142.16,13.79897912]
[1768758845374,15.82370732,142.21,142.14,20.69312671]
[1768758847776,15.82370732,142.21,142.15,14.35892671]
[1768758869994,13.3744167,142.2,142.13,13.34271338]
[1768758870197,13.3744167,142.2,142.13,130.34271338]
[1768758870388,13.3744167,142.2,142.14,13.34271338]
[1768758873994,19.7064167,142.2,142.14,13.34271338]
[1768758881006,21.48050891,142.2,142.14,13.34271338]
[1768758884307,19.7064167,142.2,142.14,13.34271338]
[1768758884611,21.48050891,142.2,142.14,13.34271338]
[1768758884810,19.7064167,142.2,142.14,13.34271338]
[1768758885009,21.48050891,142.2,142.14,13.34271338]
[1768758886111,6.3324,142.19,142.14,13.34271338]
[1768758889704,6.3324,142.19,142.15,1.77409221]
[1768758889912,6.3324,142.19,142.15,16.16001125]
[1768758891015,6.3324,142.19,142.15,1.125e-05]
[1768758892919,6.3329,142.18,142.15,1.125e-05]
[1768758893621,13.3744167,142.2,142.15,1.125e-05]
[1768758894919,6.3329,142.18,142.15,1.125e-05]
[1768758896020,6.3319,142.21,142.15,1.125e-05]
[1768758896219,6.3319,142.21,142.16,16.11241968]
[1768758900023,14.73433785,142.22,142.16,16.11241968]
[1768758905829,14.73433785,142.22,142.18,0.04521875]
[1768758912133,14.73433785,142.21,142.16,14.33832747]
[1768758912329,14.78455074,142.21,142.16,14.33832747]
[1768758914232,14.78455074,142.21,142.14,123.3345]
[1768758914939,14.78455074,142.21,142.14,137.67282747]
[1768758917434,14.73433785,142.31,142.21,6.3311]
[1768758917635,14.73433785,142.31,142.17,98.5147]
[1768758917936,14.73433785,142.27,142.18,1.77409221]
[1768758918340,14.73433785,142.27,142.21,6.3312]
[1768758925942,14.73433785,142.27,142.22,6.3307]
[1768758939651,14.73433785,142.27,142.23,6.3305]
[1768758946656,14.73433785,142.27,142.2,215.4958]
[1768758946657,13.50188728,142.42,142.31,98.421]
[1768758946850,13.50188728,142.39,142.29,98.4331]
[1768758947051,13.50188728,142.36,142.29,98.4345]
[1768758947461,13.50188728,142.36,142.3,6.3271]
[1768758947964,13.50188728,142.36,142.29,98.4318]
[1768758947965,2.03988728,142.36,142.32,100.18584483]
[1768758948164,2.03988728,142.36,142.32,98.4138]
[1768758948764,2.03988728,142.36,142.33,6.3261]
[1768758950466,267.49204483,142.4,142.33,6.3261]
[1768758952270,265.72,142.4,142.33,6.3261]
[1768758952472,13.47505852,142.39,142.33,6.3261]
[1768758953172,13.47505852,142.38,142.33,6.3261]
[1768758953666,13.47505852,142.38,142.33,8.09814483]
[1768758953965,13.47505852,142.38,142.32,1.77204483]
[1768758955271,13.47505852,142.38,142.27,98.4436]
[1768758955272,13.47505852,142.38,142.28,6.3282]
[1768758955474,15.24710335,142.38,142.29,1.77204483]
[1768758955770,15.24710335,142.38,142.28,6.3282]
[1768758955971,13.52518277,142.34,142.29,1.77204483]
[1768758960881,13.52518277,142.34,142.28,6.3282]
[1768758963080,13.52518277,142.34,142.29,6.3276]
[1768758968888,13.52518277,142.34,142.3,6.3273]
[1768758975890,13.52518277,142.34,142.28,6.3282]
[1768758978192,13.52518277,142.34,142.2,492.4668]
[1768758978193,15.2972276,142.34,142.26,117.0]
[1768758978389,13.47505852,142.33,142.24,1.77204483]
[1768758978590,279.11505852,142.32,142.24,1.77204483]
[1768758978993,0.05206575,142.3,142.24,1.77204483]
[1768758979292,0.05206575,142.3,142.24,118.77204483]
[1768758979792,0.05206575,142.3,142.25,6.3296]
[1768758980194,0.05206575,142.3,142.26,0.04534396]
[1768758981996,13.52712427,142.3,142.26,0.04534396]
[1768758989700,13.52712427,142.3,142.23,8.10224483]
[1768758989907,13.52712427,142.3,142.23,6.3302]
[1768758998215,12.83254885,142.28,142.23,6.3302]
[1768758998510,278.53254885,142.27,142.23,6.3302]
[1768758998908,278.58192302,142.27,142.23,6.3302]
[1768759010633,12.83254885,142.26,142.23,6.3302]
[1768759011324,12.83254885,142.26,142.2,117.0]
[1768759011627,12.83254885,142.26,142.19,215.5011]
[1768759012228,12.83254885,142.26,142.21,0.04529018]
[1768759012428,0.04907352,142.24,142.21,0.04529018]
[1768759012630,242.3082,142.23,142.21,0.04529018]
[1768759012826,219.3966,142.23,142.21,6.37649018]
[1768759013026,196.485,142.23,142.21,6.37649018]
[1768759013329,185.0292,142.23,142.21,6.37649018]
[1768759013529,162.784,142.23,142.21,6.37649018]
[1768759013734,141.0748,142.23,142.21,6.37649018]
[1768759014029,108.5975,142.23,142.21,6.37649018]
[1768759014428,97.9316,142.23,142.21,6.37649018]
[1768759014930,0.04907352,142.24,142.21,6.37649018]
[1768759020932,0.04907352,142.24,142.22,6.3309]
[1768759025936,0.04907352,142.24,142.21,0.04529018]
[1768759028937,11.77130782,142.28,142.21,0.04529018]
[1768759029144,11.77130782,142.28,142.21,117.04529018]
[1768759029337,11.77130782,142.28,142.21,117.0]
[1768759029944,11.77130782,142.28,142.22,6.3309]
[1768759030143,13.54327561,142.28,142.22,6.3309]
[1768759030443,0.0450619,142.26,142.22,6.3309]
[1768759032843,0.0450619,142.26,142.22,123.3309]
[1768759038959,0.0450619,142.26,142.22,129.83318601]
[1768759039556,11.77130782,142.35,142.25,100.23406779]
[1768759039757,11.77130782,142.35,142.27,1.77196779]
[1768759039960,11.77130782,142.35,142.25,6.50228601]
[1768759040153,13.54327561,142.35,142.25,6.50228601]
[1768759040348,13.54327561,142.35,142.26,1.77196779]
[1768759040756,13.54327561,142.35,142.26,8.10096779]
[1768759046062,13.54327561,142.35,142.24,104.99758204]
[1768759046063,11.77130782,142.35,142.28,1.77196779]
[1768759046265,11.77130782,142.35,142.28,118.77196779]
[1768759048162,11.77130782,142.35,142.28,117.0]
[1768759061566,11.77130782,142.35,142.3,0.0509239]
[1768759064673,18.09660782,142.35,142.3,0.0509239]
[1768759066772,20.45587017,142.34,142.3,0.0509239]
[1768759066966,12.35997897,142.33,142.3,0.0509239]
[1768759067165,12.35997897,142.33,142.28,117.0]
[1768759067572,12.35997897,142.33,142.3,0.050577]
[1768759072775,12.35997897,142.33,142.27,117.0]
[1768759072980,12.41180985,142.33,142.27,117.0]
[1768759073681,12.41180985,142.33,142.26,118.7701912]
[1768759074486,12.41180985,142.33,142.26,125.0993912]
[1768759075783,12.41180985,142.33,142.28,1.7701912]
[1768759083190,12.41180985,142.33,142.28,8.30127324]
[1768759090192,12.41180985,142.33,142.28,6.53108204]
[1768759092996,0.05183088,142.33,142.29,6.53108204]
[1768759095698,12.16731508,142.33,142.29,6.53108204]
[1768759101011,12.16731508,142.33,142.27,132.0613802]
[1768759101310,12.16731508,142.33,142.27,117.0]
[1768759103011,12.16731508,142.33,142.26,125.0993912]
[1768759108120,12.16731508,142.33,142.26,123.3292]
[1768759108314,12.16731508,142.33,142.26,125.0993912]
[1768759111024,12.16731508,142.33,142.26,133.8320714]
[1768759112323,12.16731508,142.33,142.26,125.0993912]
[1768759118728,12.16731508,142.33,142.26,123.3292]
[1768759118925,12.16731508,142.33,142.26,125.0993912]
[1768759122525,12.16731508,142.33,142.26,133.8320714]
[1768759122926,12.16731508,142.33,142.27,1.7702599]
[1768759124934,18.49361508,142.33,142.27,1.7702599]
[1768759127336,6.3266,142.32,142.27,1.7702599]
[1768759132440,6.3272,142.31,142.26,127.5029401]
[1768759132641,12.16731508,142.33,142.26,127.5029401]
[1768759132838,12.1154842,142.33,142.26,127.5029401]
[1768759133336,0.0443893,142.31,142.26,127.5029401]
[1768759133840,6.3715893,142.31,142.26,127.5029401]
[1768759145256,12.1154842,142.33,142.26,127.5029401]
[1768759145752,6.3272,142.31,142.26,127.5029401]
[1768759146246,11.73926409,142.35,142.26,127.5029401]
[1768759146445,11.73926409,142.35,142.27,8.7326802]
[1768759146853,6.3265,142.33,142.27,8.7326802]
[1768759149954,6.3265,142.33,142.27,125.7326802]
[1768759155556,6.3265,142.33,142.27,127.5029401]
[1768759157858,18.06576409,142.33,142.27,127.5029401]
[1768759158164,18.06576409,142.33,142.27,125.7326802]
[1768759158858,11.73926409,142.33,142.27,125.7326802]
[1768759161160,11.73926409,142.33,142.28,6.54783338]
[1768759165162,1.22304813,142.4,142.28,8.31809328]
[1768759165362,1.7702599,142.47,142.34,98.3981]
[1768759165570,10.82609892,142.45,142.35,265.5]
[1768759165860,10.82609892,142.45,142.38,1.7702599]
[1768759166168,0.05246429,142.42,142.39,0.05282762]
[1768759166568,10.82609892,142.46,142.39,0.05282762]
[1768759166867,10.82609892,142.46,142.38,98.3678]
[1768759167257,10.82609892,142.46,142.38,104.6913]
[1768759167761,10.82609892,142.46,142.38,106.4615599]
[1768759167961,10.82609892,142.46,142.41,0.05396066]
[1768759169162,12.59635882,142.46,142.41,0.05396066]
[1768759169562,10.82609892,142.46,142.41,0.05396066]
[1768759169762,12.59635882,142.46,142.41,0.05396066]
[1768759170368,10.82609892,142.46,142.35,6.3249]
[1768759170565,10.82609892,142.46,142.36,265.42]
[1768759170764,98.2998,142.49,142.36,265.42]
[1768759170765,12.59635882,142.45,142.36,265.42]
[1768759171269,11.37635882,142.45,142.36,265.42]
[1768759171466,10.82609892,142.45,142.36,265.42]
[1768759172673,10.82609892,142.45,142.36,267.1902599]
[1768759173359,10.82609892,142.45,142.39,0.04512298]
[1768759173562,12.59635882,142.45,142.39,117.04512298]
[1768759174168,0.04605703,142.43,142.39,117.04512298]
[1768759184280,10.78782413,142.43,142.39,117.04512298]
[1768759184475,10.78782413,142.43,142.35,99.86340812]
[1768759184982,10.78782413,142.43,142.35,99.86138997]
[1768759185378,10.78782413,142.43,142.35,98.09314822]
[1768759185579,12.51000885,142.42,142.35,91.76814822]
[1768759186281,0.04548001,142.4,142.35,91.76814822]
[1768759186482,12.55548886,142.4,142.33,299.26553089]
[1768759187275,10.78724711,142.4,142.33,299.26553089]
[1768759188985,2.00367384,142.4,142.34,7.03390914]
[1768759189181,2.00367384,142.4,142.35,7.03390914]
[1768759189382,2.00367384,142.4,142.36,7.03390914]
[1768759189584,2.00367384,142.4,142.37,7.03390914]
[1768759189777,2.00367384,142.4,142.38,2.542e-05]
[1768759189977,2.00367384,142.4,142.33,299.26553089]
[1768759190877,2.00367384,142.4,142.33,98.09404822]
[1768759192286,2.00367384,142.4,142.33,91.76814822]
[1768759193081,8.32687384,142.4,142.33,91.76814822]
[1768759193882,8.32687384,142.4,142.31,99.86308997]
[1768759196891,8.32687384,142.4,142.31,98.09484822]
[1768759197095,8.32687384,142.4,142.31,99.86308997]
[1768759197286,10.77976123,142.39,142.31,98.09484822]
[1768759197487,10.77976123,142.39,142.31,99.86308997]
[1768759198487,0.0493297,142.36,142.31,99.86308997]
[1768759198885,5.55889905,142.39,142.32,0.04422775]
[1768759199086,5.55889905,142.39,142.32,91.81237597]
[1768759200585,6.3237,142.39,142.32,91.81237597]
[1768759200987,17.10346123,142.39,142.32,91.81237597]
[1768759201187,10.77976123,142.38,142.32,91.81237597]
[1768759201694,10.77976123,142.38,142.33,6.63831369]
[1768759201891,10.77976123,142.38,142.34,6.63831369]
[1768759202194,10.77976123,142.38,142.35,6.63831369]
[1768759202394,10.77976123,142.38,142.36,1.369e-05]
[1768759202695,10.77976123,142.38,142.31,98.09484822]
[1768759202897,10.77976123,142.38,142.31,99.86308997]
[1768759203094,10.77976123,142.38,142.36,0.0442849]
[1768759203484,10.77976123,142.38,142.31,99.86308997]
[1768759203891,10.77976123,142.38,142.36,0.05318992]
[1768759204290,10.77976123,142.38,142.31,99.86308997]
[1768759204488,10.77976123,142.38,142.31,98.09484822]
[1768759204688,10.77976123,142.38,142.33,0.05379105]
[1768759205195,17.10376123,142.38,142.33,0.05379105]
[1768759208889,11.83303973,142.38,142.33,0.05379105]
[1768759214310,10.77976123,142.37,142.33,0.05379105]
[1768759216412,10.77976123,142.37,142.29,6.4737396]
[1768759216711,12.54800298,142.37,142.28,98.24188782]
[1768759217102,10.77976123,142.37,142.28,98.24188782]
[1768759217302,12.54800298,142.37,142.28,98.24188782]
[1768759217915,10.77976123,142.35,142.28,98.24188782]
[1768759220313,10.77976123,142.34,142.28,98.24188782]
[1768759220513,10.77976123,142.34,142.28,6.4737396]
[1768759222312,271.8654,142.35,142.28,6.4737396]
[1768759222618,283.5313253,142.35,142.28,8.24198135]
[1768759223411,11.6659253,142.34,142.28,8.24198135]
[1768759223915,17.9917253,142.34,142.28,6.4737396]
[1768759225219,265.56,142.35,142.27,91.76814822]
[1768759225220,11.6659253,142.32,142.27,91.76814822]
[1768759226113,11.6659253,142.32,142.26,6.4737396]
[1768759229623,17.9927253,142.32,142.26,6.4737396]
[1768759232421,11.6659253,142.31,142.25,6.4737396]
[1768759233927,11.6659253,142.31,142.24,91.76814822]
[1768759233928,11.6659253,142.31,142.24,98.24188782]
[1768759234228,11.6659253,142.31,142.25,6.4737396]
[1768759234431,11.6659253,142.3,142.24,98.24188782]
[1768759236816,11.55700847,142.29,142.24,91.76814822]
[1768759238026,11.55700847,142.29,142.23,91.76814822]
[1768759238722,0.04590317,142.27,142.23,91.76814822]
[1768759238928,0.04590317,142.27,142.25,0.0500913]
[1768759246829,11.60291164,142.27,142.2,6.4737396]
[1768759247031,11.60291164,142.27,142.2,98.24188782]
[1768759247332,11.60291164,142.27,142.2,91.76814822]
[1768759247933,17.93181164,142.27,142.2,91.76814822]
[1768759248135,17.93181164,142.27,142.2,93.53981077]
[1768759248434,0.04590317,142.27,142.22,1.77166255]
[1768759248934,11.55700847,142.29,142.22,1.77166255]
[1768759249627,11.55700847,142.29,142.23,1.77166255]
[1768759251228,11.55700847,142.29,142.21,98.09934822]
[1768759251433,11.55700847,142.29,142.23,1.77166255]
[1768759254037,11.55700847,142.29,142.21,98.09934822]
[1768759254634,11.55700847,142.29,142.23,1.77166255]
[1768759255929,11.55700847,142.29,142.21,104.57308782]
[1768759256134,11.55700847,142.29,142.22,1.77166255]
[1768759261333,11.55700847,142.29,142.22,93.53981077]
[1768759262039,11.55700847,142.29,142.22,99.87071077]
[1768759262540,11.55700847,142.29,142.22,106.34445037]
[1768759267242,11.55700847,142.29,142.23,6.4737396]
[1768759272344,11.95464802,142.31,142.24,1.77166255]
[1768759272648,11.95464802,142.33,142.26,1.77166255]
[1768759272947,11.95464802,142.33,142.26,8.10086255]
[1768759273142,11.95464802,142.33,142.26,14.57460215]
[1768759279154,11.95464802,142.33,142.27,6.3287]
[1768759286664,11.95464802,142.33,142.26,91.76814822]
[1768759286968,13.72631057,142.33,142.26,91.76814822]
[1768759287666,13.72631057,142.33,142.25,106.40360977]
[1768759288766,13.72631057,142.33,142.26,6.534499]
[1768759289863,13.72631057,142.33,142.26,12.863599]
[1768759291461,11.95464802,142.33,142.26,12.863599]
[1768759291661,13.72631057,142.33,142.26,12.863599]
[1768759292063,13.24768935,142.32,142.26,6.534499]
[1768759292262,13.24768935,142.3,142.26,6.534499]
[1768759292668,13.24768935,142.3,142.25,6.534499]
[1768759292869,13.24768935,142.3,142.24,98.30264722]
[1768759293668,13.24768935,142.3,142.24,104.63264722]
[1768759296469,13.24768935,142.3,142.24,12.864499]
[1768759298177,12.64112089,142.28,142.24,12.864499]
[1768759298371,12.64112089,142.28,142.24,6.33]
[1768759298578,12.64112089,142.28,142.23,98.30264722]
[1768759298775,12.64112089,142.28,142.23,6.534499]
[1768759299375,12.64112089,142.28,142.23,12.864999]
[1768759310596,12.64112089,142.28,142.23,6.534499]
[1768759316397,12.64112089,142.28,142.22,6.3309]
[1768759316604,12.64112089,142.28,142.23,6.53641233]
[1768759321598,13.56518151,142.3,142.24,1.7717286]
[1768759321802,1.7717286,142.32,142.24,1.7717286]
[1768759321803,13.56518151,142.32,142.26,1.7717286]
[1768759321998,15.33691011,142.36,142.28,6.53641233]
[1768759322199,15.33691011,142.36,142.27,6.53641233]
[1768759322905,13.56518151,142.34,142.27,12.86511233]
[1768759323493,13.56518151,142.34,142.27,12.85617243]
[1768759333614,13.56518151,142.34,142.27,6.52747243]
[1768759334112,15.33691011,142.33,142.27,6.52747243]
[1768759335310,13.56518151,142.32,142.25,123.52747243]
[1768759336205,0.0503664,142.3,142.25,123.52747243]
[1768759336412,0.0503664,142.3,142.25,6.52747243]
[1768759338615,0.0503664,142.3,142.26,0.04641807]
[1768759357232,0.0503664,142.3,142.26,6.5738905]
[1768759362535,13.55303083,142.33,142.27,6.52747243]
[1768759362730,13.55303083,142.33,142.28,6.52747243]
[1768759364030,13.55303083,142.33,142.29,0.05348359]
[1768759367940,13.55303083,142.35,142.29,6.58095602]
[1768759371448,13.55303083,142.35,142.29,6.59194006]
[1768759372049,13.55303083,142.35,142.29,8.36200028]
[1768759374549,13.55303083,142.35,142.29,0.05348359]
[1768759377750,13.87092967,142.28,142.22,13.07693028]
[1768759378048,13.87092967,142.3,142.23,15.11355514]
[1768759378449,13.87092967,142.3,142.25,15.11355514]
[1768759378841,13.87092967,142.32,142.25,15.11355514]
[1768759379248,0.04468438,142.3,142.25,15.11355514]
[1768759380751,0.04468438,142.3,142.26,0.04499184]
[1768759387758,13.91561405,142.3,142.26,0.04499184]
[1768759388063,15.64098989,142.28,142.2,13.34349492]
[1768759389359,0.05047246,142.25,142.2,13.34349492]
[1768759390360,13.92140213,142.25,142.2,13.34349492]
[1768759390550,13.92140213,142.25,142.18,13.34349492]
[1768759393966,13.92140213,142.25,142.04,203.40242311]
[1768759393967,1.77006022,142.2,142.14,13.34349492]
[1768759394162,13.87092967,142.2,142.14,13.34349492]
[1768759394767,0.05046327,142.18,142.14,13.34349492]
[1768759401571,13.87092967,142.2,142.14,13.34349492]
[1768759411076,13.87092967,142.2,142.15,12.6871661]
[1768759414382,12.7833642,142.22,142.15,19.0210661]
[1768759414587,12.7833642,142.22,142.16,12.6871661]
[1768759415874,12.7833642,142.22,142.17,12.6871661]
[1768759416085,12.7833642,142.24,142.17,12.6871661]
[1768759416281,12.7833642,142.24,142.18,12.6871661]
[1768759416486,12.7833642,142.26,142.2,12.6871661]
[1768759417790,12.4403952,142.25,142.18,13.09676471]
[1768759418790,12.4403952,142.25,142.18,19.42936471]
[1768759421285,12.4403952,142.25,142.18,21.19942493]
[1768759430192,6.3298,142.25,142.18,13.09676471]
[1768759430402,12.4403952,142.24,142.18,13.09676471]
[1768759430797,12.4403952,142.24,142.16,19.43016471]
[1768759430997,14.21353378,142.24,142.16,19.43016471]
[1768759433398,13.42411994,142.23,142.16,19.43016471]
[1768759441814,15.19725852,142.22,142.14,28.21716215]
[1768759442108,1.77313858,142.21,142.14,19.5604444]
[1768759442314,13.42411994,142.2,142.14,19.5604444]
[1768759442910,0.04473516,142.18,142.14,19.5604444]
[1768759447916,13.42411994,142.2,142.14,19.5604444]
[1768759449216,13.42411994,142.2,142.16,0.05217832]
[1768759472040,8.10423858,142.22,142.16,12.29103009]
[1768759472440,20.60155984,142.22,142.16,12.29103009]
[1768759472642,12.49732126,142.21,142.16,12.29103009]
[1768759473744,12.49732126,142.21,142.16,0.05217832]
[1768759480451,18.82882126,142.21,142.16,0.05217832]
[1768759481052,13.21147445,142.2,142.16,0.05217832]
[1768759481652,13.21147445,142.22,142.16,12.80581458]
[1768759491058,13.21147445,142.22,142.16,20.91255316]
[1768759493056,13.21147445,142.22,142.16,20.91237954]
[1768759495359,13.21147445,142.22,142.16,19.13941458]
[1768759495562,13.21147445,142.22,142.16,20.91237954]
[1768759496061,13.21147445,142.22,142.16,19.13941458]
[1768759496262,13.21147445,142.22,142.16,20.91237954]
[1768759505468,13.21147445,142.22,142.17,12.79819333]
[1768759510374,13.21147445,142.22,142.17,19.13139333]
[1768759510573,13.21147445,142.22,142.17,12.79819333]
[1768759511670,12.11569152,142.24,142.17,12.79819333]
[1768759511869,12.11569152,142.24,142.18,19.13089333]
[1768759512478,12.11569152,142.24,142.2,0.05009517]
[1768759537595,6.3287,142.28,142.2,0.05009517]
[1768759537899,12.14567381,142.27,142.2,12.76994226]
[1768759538091,12.14567381,142.27,142.2,12.71984709]
[1768759538491,12.14567381,142.27,142.22,0.05104644]
[1768759551110,12.14567381,142.25,142.22,0.05104644]
[1768759567321,1.77257937,142.24,142.19,6.3321]
[1768759567531,12.18031642,142.23,142.19,6.3321]
[1768759567826,12.18031642,142.23,142.18,12.74579873]
[1768759568929,12.18031642,142.23,142.2,6.3318]
[1768759581239,12.18031642,142.23,142.18,19.07819873]
[1768759585346,12.18031642,142.23,142.19,6.3323]
[1768759585742,1.77257937,142.25,142.19,6.3323]
[1768759587646,12.27338495,142.24,142.19,6.3323]
[1768759592949,0.0487297,142.23,142.19,6.3323]
[1768759602960,12.95350033,142.23,142.17,112.65826157]
[1768759603165,14.67735,142.22,142.17,106.32526157]
[1768759607163,14.67735,142.22,142.16,6.3335]
[1768759607368,14.67735,142.22,142.16,19.33216638]
[1768759608175,12.90477063,142.22,142.16,19.33216638]
[1768759617784,12.71829107,142.21,142.15,108.09854448]
[1768759618788,12.71829107,142.21,142.15,114.43264448]
[1768759619389,0.04565231,142.19,142.15,114.43264448]
[1768759621293,0.04565231,142.19,142.15,127.21410207]
[1768759625195,0.04565231,142.19,142.15,125.44081916]
[1768759625389,0.04565231,142.19,142.15,127.21410207]
[1768759626995,0.04565231,142.19,142.16,12.78145759]
[1768759628795,6.3312,142.22,142.16,12.78145759]
[1768759629194,6.3312,142.22,142.16,12.82597852]
[1768759630295,6.3312,142.22,142.16,14.59926143]
[1768759633098,6.3312,142.22,142.16,12.82597852]
[1768759633296,6.3312,142.22,142.16,14.59926143]
[1768759644003,6.3312,142.22,142.16,12.82597852]
[1768759681047,18.87517555,142.24,142.17,14.25904562]
[1768759681446,12.54467555,142.24,142.17,14.25904562]
[1768759682041,12.54467555,142.24,142.19,0.04670729]
[1768759687645,18.87487555,142.24,142.19,0.04670729]
[1768759689248,12.54467555,142.23,142.19,0.04670729]
[1768759689549,12.59275322,142.23,142.17,106.32526157]
[1768759689949,12.54467555,142.22,142.17,106.32526157]
[1768759692150,12.54467555,142.22,142.16,12.48568121]
[1768759724376,12.54467555,142.22,142.16,21.14239896]
[1768759727282,12.54467555,142.22,142.17,12.60594241]
[1768759751113,0.04807767,142.23,142.18,12.94762414]
[1768759757317,9.02357791,142.23,142.18,12.94762414]
[1768759768229,10.79676764,142.23,142.18,12.94762414]
[1768759785347,9.02357791,142.23,142.18,12.94762414]
[1768759785544,10.79676764,142.23,142.18,12.94762414]
[1768759788448,9.02357791,142.23,142.18,12.94762414]
[1768759788647,10.79676764,142.23,142.18,12.94762414]
[1768759789143,11.20488867,142.21,142.15,8.65671775]
[1768759789341,11.20488867,142.21,142.15,21.27012645]
[1768759789539,11.20488867,142.21,142.15,12.6134087]
[1768759789944,0.0469137,142.19,142.15,12.6134087]
[1768759804258,18.92928539,142.19,142.11,8.65671775]
[1768759804463,18.92928539,142.19,142.11,276.21053642]
[1768759804960,12.59678539,142.19,142.1,16.76673642]
[1768759805553,12.54987169,142.19,142.1,16.76673642]
[1768759805759,6.3333,142.17,142.1,16.76673642]
[1768759805957,0.04573701,142.16,142.1,16.76673642]
[1768759806359,0.04573701,142.16,142.11,12.82545826]
[1768759822073,6.37953701,142.16,142.11,12.82545826]
[1768759822479,12.66832994,142.16,142.09,127.07805176]
[1768759823176,12.66832994,142.16,142.09,13.07805176]
[1768759823371,12.66832994,142.16,142.11,0.04901106]
[1768759823572,6.3351,142.13,142.08,13.07805176]
[1768759825078,19.01136388,142.12,142.04,587.62539469]
[1768759825274,19.01136388,142.12,142.04,467.28669469]
[1768759826380,19.01136388,142.12,142.04,469.06051336]
[1768759826880,19.01136388,142.12,142.04,467.28669469]
[1768759827073,19.01136388,142.12,142.05,13.07805176]
[1768759831080,19.01136388,142.12,142.05,14.85187043]
[1768759836383,0.05307095,142.12,142.08,13.07805176]
[1768759836590,12.62259293,142.16,142.1,12.83891937]
[1768759837789,18.95649293,142.16,142.1,12.83891937]
[1768759839483,98.492,142.21,142.1,12.83891937]
[1768759839484,160.91052888,142.18,142.1,14.61273804]
[1768759839885,160.91052888,142.18,142.11,12.83891937]
[1768759847100,160.91052888,142.18,142.11,14.61273804]
[1768759848196,154.57752888,142.18,142.11,14.61273804]
[1768759849295,154.57752888,142.18,142.11,12.83891937]
[1768759853900,154.57752888,142.18,142.11,19.17471937]
[1768759854398,154.57752888,142.18,142.12,13.19443163]
[1768759854597,13.42035402,142.18,142.12,13.19443163]
[1768759855004,13.42035402,142.18,142.12,19.52973163]
[1768759861705,20.65815438,142.2,142.13,13.19443163]
[1768759861902,18.88387628,142.2,142.13,13.19443163]
[1768759862306,0.04875235,142.18,142.13,13.19443163]
[1768759871112,0.04875235,142.18,142.13,19.52943163]
[1768759873511,14.32595438,142.21,142.15,13.19443163]
[1768759880126,12.55167628,142.21,142.15,13.19443163]
[1768759880627,14.32595438,142.21,142.15,13.19443163]
[1768759882732,12.63547286,142.2,142.15,13.19443163]
[1768759882926,12.63547286,142.22,142.15,13.19443163]
[1768759883322,12.63547286,142.22,142.16,13.07846438]
[1768759883727,12.63547286,142.22,142.17,13.13096674]
[1768759884027,12.63547286,142.23,142.17,13.13096674]
[1768759890030,14.40975096,142.23,142.17,13.13096674]
[1768759898642,20.73995096,142.23,142.17,13.13096674]
[1768759901846,18.96567286,142.23,142.17,13.13096674]
[1768759902341,20.73995096,142.23,142.17,13.13096674]
[1768759908856,18.49442692,142.22,142.17,13.13096674]
[1768759910148,13.93820502,142.21,142.17,0.05250236]
[1768759910446,13.93820502,142.18,142.12,114.0]
[1768759910761,13.93820502,142.17,142.12,12.58941265]
[1768759911057,20.27090502,142.17,142.11,114.0]
[1768759911257,20.27090502,142.17,142.11,126.58941265]
[1768759914859,20.27090502,142.17,142.11,12.58941265]
[1768759915046,18.49662692,142.17,142.11,12.58941265]
[1768759915252,20.27090502,142.17,142.11,12.58941265]
[1768759916361,18.49662692,142.17,142.11,12.58941265]
[1768759916663,12.16392692,142.17,142.11,12.58941265]
[1768759917563,0.04717575,142.15,142.11,12.58941265]
[1768759918765,8.1065781,142.18,142.11,12.58941265]
[1768759918963,8.1065781,142.18,142.13,12.62406808]
[1768759919561,6.3323,142.18,142.13,12.62406808]
[1768759919761,15.03937622,142.19,142.13,12.62406808]
[1768759920964,13.26509812,142.19,142.13,12.62406808]
[1768759921765,1.77410269,142.2,142.13,12.62406808]
[1768759922763,13.26509812,142.23,142.15,12.66943435]
[1768759923064,1.77410269,142.22,142.16,12.62406808]
[1768759923567,15.03920081,142.22,142.18,0.04795014]
[1768759925163,162.4209647,142.24,142.18,12.67201822]
[1768759925369,164.19506739,142.24,142.18,12.67201822]
[1768759926170,13.26509812,142.23,142.18,12.67201822]
[1768759934877,149.15586658,142.24,142.18,12.67201822]
[1768759935974,162.4209647,142.24,142.18,12.67201822]
[1768759941484,13.26509812,142.23,142.18,12.67201822]
[1768759979916,13.26509812,142.23,142.18,19.00401822]
[1768759994228,0.74818611,142.23,142.18,19.00401822]
[1768759998028,1.77299692,142.24,142.18,19.00401822]
[1768759998731,13.92331147,142.24,142.18,19.00401822]
[1768760003134,12.15031455,142.24,142.18,19.00401822]
[1768760009937,12.15031455,142.24,142.18,12.67201822]
[1768760017342,13.92331147,142.24,142.18,12.67201822]